bitfinex/quotes_ETHUSD_20250721
["timestamp","ask_amount","ask_price","bid_price","bid_amount"]
[1753137994796,16.89744812,3773.6,3773.5,1e-08]
[1753137999158,12.82144812,3773.6,3773.5,1e-08]
[1753137999433,16.89244812,3773.6,3773.5,1e-08]
[1753138000535,16.60544812,3773.6,3773.5,1e-08]
[1753138000844,16.60544812,3773.6,3772.9,0.001]
[1753138000845,2.65041081,3773.0,3772.9,0.001]
[1753138001145,2.65041081,3773.0,3772.5,0.001]
[1753138001146,2.65069183,3772.6,3772.5,0.001]
[1753138001447,12.78175055,3772.6,3772.5,0.001]
[1753138002217,13.60245055,3772.6,3772.5,1e-08]
[1753138002619,2.65104318,3772.1,3772.0,0.001]
[1753138002820,2.65111346,3772.0,3771.5,0.4356]
[1753138003049,3.40891346,3772.0,3771.5,0.4356]
[1753138003416,7.47691346,3772.0,3771.5,0.4356]
[1753138003607,2.65111346,3772.0,3770.4,0.001]
[1753138003807,6.71911346,3772.0,3771.9,0.4366]
[1753138004252,6.71911346,3772.0,3771.6,0.001]
[1753138004253,2.65132433,3771.7,3771.6,0.001]
[1753138004416,8.71338305,3771.7,3771.6,0.001]
[1753138004613,8.71338305,3771.7,3771.6,0.4366]
[1753138006256,2.65153523,3771.4,3771.3,0.4366]
[1753138006552,2.65153523,3771.4,3771.3,0.001]
[1753138007110,2.65153523,3771.4,3771.3,0.445]
[1753138007316,8.71359395,3771.4,3771.3,0.001]
[1753138008009,8.71359395,3771.4,3771.3,0.445]
[1753138008429,8.71359395,3771.4,3771.3,0.001]
[1753138009817,8.71359395,3771.4,3771.3,0.445]
[1753138012962,2.65153523,3771.4,3771.3,0.445]
[1753138020659,2.65153523,3771.4,3771.3,1e-08]
[1753138020849,2.65167585,3771.2,3770.7,1.1958]
[1753138021160,2.65195714,3770.8,3770.7,0.7518]
[1753138021331,2.6520978,3770.6,3770.5,4.8188]
[1753138021682,2.78416814,3770.5,3770.3,0.445]
[1753138021859,2.78416814,3770.5,3770.3,0.001]
[1753138022365,2.78416814,3770.5,3770.4,0.445]
[1753138024052,2.78416814,3770.5,3770.4,0.001]
[1753138024934,2.78416814,3770.5,3770.4,0.445]
[1753138026962,2.78416814,3770.5,3770.4,1.1968]
[1753138028077,0.132,3770.5,3770.4,1.1968]
[1753138029080,2.78416814,3770.5,3770.4,1.1968]
[1753138031282,2.78416814,3770.5,3770.4,1.1468]
[1753138032960,2.78416814,3770.5,3770.3,0.001]
[1753138032961,2.65223848,3770.4,3770.3,0.001]
[1753138033369,2.65223848,3770.4,3770.3,0.445]
[1753138033674,2.65218938,3770.5,3770.3,1.2367]
[1753138033878,2.65218938,3770.5,3770.4,0.444]
[1753138034586,2.65345221,3771.6,3770.5,0.7917]
[1753138034787,0.002,3771.6,3770.8,0.7917]
[1753138035083,0.132,3771.1,3771.0,0.7917]
[1753138035289,0.132,3771.1,3771.0,1.2357]
[1753138037005,0.132,3771.1,3771.0,3.88751649]
[1753138037162,0.132,3771.3,3771.1,0.7804]
[1753138037362,0.132,3771.3,3771.2,0.9942]
[1753138037667,0.134,3771.6,3771.4,0.7804]
[1753138037884,0.134,3771.6,3771.5,4.067]
[1753138038057,0.134,3771.6,3771.5,5.2916]
[1753138039407,0.134,3771.6,3771.5,9.34503576]
[1753138039567,0.002,3771.6,3771.5,12.34503576]
[1753138045999,0.134,3772.4,3772.3,2.65090263]
[1753138046201,0.134,3772.4,3772.3,4.066]
[1753138046604,0.134,3772.4,3772.3,4.5102]
[1753138047603,0.134,3772.4,3772.3,4.5092]
[1753138048170,0.134,3772.4,3772.3,0.4442]
[1753138048377,0.134,3772.4,3772.3,4.5092]
[1753138048905,0.134,3772.4,3772.3,0.4442]
[1753138049210,0.134,3772.4,3772.3,4.5092]
[1753138050109,2.78483236,3772.4,3772.3,4.5092]
[1753138050690,0.134,3772.4,3772.3,4.5092]
[1753138051743,2.78483236,3772.4,3772.3,4.5092]
[1753138052016,2.650935,3772.3,3771.8,1.1972]
[1753138052217,0.132,3772.0,3771.9,4.065]
[1753138052517,0.132,3772.0,3771.9,4.5092]
[1753138052716,2.65118375,3771.9,3771.5,0.7583]
[1753138053021,2.78313731,3772.0,3771.6,4.5092]
[1753138053178,2.65113731,3772.0,3771.6,4.065]
[1753138053379,2.65113731,3772.0,3771.7,0.4442]
[1753138053682,2.6510663,3772.1,3771.8,4.5082]
[1753138053876,2.65100102,3772.2,3771.9,0.4442]
[1753138054094,2.65100102,3772.2,3772.0,4.064]
[1753138054276,2.65100102,3772.2,3772.1,0.4442]
[1753138056127,0.002,3772.4,3772.1,1.2023]
[1753138056327,2.65090263,3772.3,3772.2,4.5082]
[1753138057726,2.65090263,3772.3,3772.2,4.064]
[1753138058832,0.132,3772.2,3772.0,0.4442]
[1753138059036,2.65090263,3772.3,3772.1,4.5082]
[1753138059399,2.6509729,3772.2,3772.1,4.5082]
[1753138063455,2.6509729,3772.2,3772.1,4.064]
[1753138069054,0.002,3772.4,3772.1,4.064]
[1753138069278,2.6509729,3772.2,3772.1,4.064]
[1753138069459,2.6509729,3772.2,3772.1,4.5241]
[1753138071671,0.002,3772.4,3772.1,4.5241]
[1753138071878,2.65285564,3772.4,3772.2,0.4601]
[1753138072093,0.002,3772.4,3772.3,4.5231]
[1753138072427,0.002,3772.4,3772.3,5.3012]
[1753138072644,0.002,3772.4,3772.3,8.50210263]
[1753138073941,0.002,3772.4,3772.3,11.50210263]
[1753138074141,0.002,3772.4,3772.3,28.83277363]
[1753138074342,0.002,3772.4,3772.3,50.32369528]
[1753138075147,0.002,3772.4,3772.3,32.54683228]
[1753138075349,0.002,3772.4,3772.3,26.06339928]
[1753138075658,0.002,3772.4,3772.3,30.12639928]
[1753138076338,0.002,3772.4,3772.3,30.35074928]
[1753138076687,0.002,3772.4,3772.3,29.18654928]
[1753138077248,0.002,3772.4,3772.3,20.32369528]
[1753138077454,0.002,3772.4,3772.3,30.27374928]
[1753138077673,0.002,3772.4,3772.3,26.21074928]
[1753138077984,0.002,3772.4,3772.3,30.27274928]
[1753138078380,0.002,3772.4,3772.3,30.49003628]
[1753138079040,0.002,3772.4,3772.3,30.24303628]
[1753138079236,0.002,3772.4,3772.3,27.71074928]
[1753138079937,0.002,3772.4,3772.3,32.91397428]
[1753138080172,0.002,3772.4,3772.3,33.66292028]
[1753138080445,0.002,3772.4,3772.3,32.69002628]
[1753138080763,0.002,3772.4,3772.3,16.39123656]
[1753138080951,0.002,3772.4,3772.3,13.70963656]
[1753138081674,0.002,3772.4,3772.3,14.25963656]
[1753138083255,0.002,3772.4,3772.3,22.19993356]
[1753138084393,0.002,3772.4,3772.3,16.80340856]
[1753138084887,0.002,3772.4,3772.3,14.25963656]
[1753138085385,0.002,3772.4,3772.3,10.19863656]
[1753138085589,0.002,3772.4,3772.3,14.25963656]
[1753138085971,0.002,3772.4,3772.3,22.58990556]
[1753138086281,0.002,3772.4,3772.3,22.10459856]
[1753138086642,0.002,3772.4,3772.3,17.20629056]
[1753138086848,0.002,3772.4,3772.3,14.25963656]
[1753138089583,0.002,3772.4,3772.3,10.19863656]
[1753138089757,0.002,3772.4,3772.3,14.25863656]
[1753138090156,0.002,3772.4,3772.2,6.358]
[1753138090462,0.002,3772.4,3772.3,7.61]
[1753138090788,0.002,3772.4,3772.3,10.72100263]
[1753138091583,0.002,3772.4,3772.3,11.66140263]
[1753138093268,0.002,3772.4,3772.3,3.132]
[1753138093495,0.134,3772.4,3772.3,7.06]
[1753138093687,0.134,3772.4,3772.3,4.06]
[1753138095485,0.134,3772.4,3772.2,6.358]
[1753138095706,0.134,3772.4,3772.3,4.06]
[1753138096404,0.134,3772.4,3772.2,6.358]
[1753138096601,2.65090263,3772.3,3772.2,6.358]
[1753138096776,2.65090263,3772.3,3772.2,10.418]
[1753138096983,3.12085496,3772.4,3772.2,4.06]
[1753138097185,2.65090263,3772.3,3772.2,4.06]
[1753138097503,2.98692417,3772.3,3772.2,4.06]
[1753138097705,2.65092417,3772.3,3772.2,4.06]
[1753138098002,2.78483933,3772.4,3772.2,4.06]
[1753138098387,2.78483933,3772.4,3771.7,6.12190895]
[1753138098703,2.65090287,3772.3,3771.9,3.0]
[1753138098865,2.65285429,3772.4,3772.1,3.0]
[1753138099064,2.65285429,3772.4,3772.2,4.06]
[1753138099699,2.65090263,3772.3,3772.2,4.06]
[1753138099870,2.6528472,3772.4,3772.2,4.06]
[1753138100065,2.65090263,3772.3,3772.2,4.06]
[1753138104016,2.65284799,3772.4,3772.2,4.06]
[1753138104214,2.65090263,3772.3,3772.2,4.06]
[1753138104378,2.65100185,3772.2,3771.6,0.001]
[1753138104582,0.132,3771.9,3771.7,4.06]
[1753138104807,0.132,3771.9,3771.8,4.06]
[1753138105323,0.132,3771.9,3771.6,2.67890072]
[1753138105485,0.132,3771.9,3771.7,4.06]
[1753138105816,0.132,3771.9,3771.7,6.71131751]
[1753138106318,0.132,3771.9,3771.8,0.4706]
[1753138106525,0.132,3771.9,3771.8,4.5306]
[1753138109825,0.002,3772.4,3771.9,2.65118375]
[1753138110013,0.132,3772.1,3772.0,7.5306]
[1753138110325,0.132,3772.1,3772.0,10.18169222]
[1753138111592,0.132,3772.1,3772.0,10.79381035]
[1753138111932,0.134,3772.4,3772.2,2.65092626]
[1753138112223,0.134,3772.4,3772.3,9.70990263]
[1753138112828,0.134,3772.4,3772.3,10.18050263]
[1753138113325,0.002,3772.4,3772.3,10.73050263]
[1753138113540,0.002,3772.4,3772.3,12.88576711]
[1753138116751,0.002,3772.4,3772.3,9.47896448]
[1753138117436,0.002,3772.4,3772.3,12.12986711]
[1753138117752,0.002,3772.4,3772.3,12.92986711]
[1753138118939,0.002,3772.4,3772.3,10.27896448]
[1753138121731,0.002,3772.4,3772.3,12.92986711]
[1753138124237,0.002,3772.4,3772.3,13.71706711]
[1753138133936,0.002,3772.4,3772.3,12.45726711]
[1753138134309,0.002,3772.4,3772.3,11.05790263]
[1753138134843,0.002,3772.4,3772.3,11.49640263]
[1753138140778,0.002,3772.4,3772.3,7.856]
[1753138141080,0.134,3772.4,3772.3,4.856]
[1753138141295,0.134,3772.4,3772.3,0.8]
[1753138141593,0.47,3772.4,3772.3,4.856]
[1753138141795,0.47,3772.4,3772.3,0.8]
[1753138141936,3.93303236,3772.4,3772.3,4.856]
[1753138143176,3.93303236,3772.4,3772.3,0.8]
[1753138143379,3.93303236,3772.4,3772.3,4.856]
[1753138150079,3.93303236,3772.4,3772.3,0.8]
[1753138150386,3.93303236,3772.4,3772.3,4.856]
[1753138150878,3.93303236,3772.4,3772.3,4.855]
[1753138152451,3.59703236,3772.4,3772.3,4.855]
[1753138153583,3.93303236,3772.4,3772.3,4.855]
[1753138155300,3.93303236,3772.4,3772.3,0.8]
[1753138155596,3.93303236,3772.4,3772.3,4.855]
[1753138156493,3.93303236,3772.4,3772.3,0.8]
[1753138156700,3.93303236,3772.4,3772.3,4.055]
[1753138157357,3.59703236,3772.4,3772.3,4.055]
[1753138159666,3.93303236,3772.4,3772.3,4.055]
[1753138162820,3.93303236,3772.4,3771.6,0.001]
[1753138162821,2.65119705,3771.9,3771.6,0.001]
[1753138162964,2.65119705,3771.9,3771.7,4.054]
[1753138163163,2.65125404,3771.8,3771.7,4.054]
[1753138163365,0.132,3771.7,3771.6,0.001]
[1753138163666,0.132,3771.7,3771.6,4.055]
[1753138164504,8.84538305,3771.7,3771.6,4.055]
[1753138166194,6.19405872,3771.7,3771.6,4.055]
[1753138166712,6.19405872,3771.7,3771.6,4.855]
[1753138167007,8.84538305,3771.7,3771.6,4.855]
[1753138168414,8.84538305,3771.7,3771.6,0.801]
[1753138168712,8.84538305,3771.7,3771.6,4.855]
[1753138169208,6.19405872,3771.7,3771.6,4.855]
[1753138170006,8.84538305,3771.7,3771.6,4.855]
[1753138170215,6.19405872,3771.7,3771.6,4.855]
[1753138171785,0.132,3771.7,3771.6,4.855]
[1753138174203,0.132,3771.7,3771.6,6.64009]
[1753138174415,0.132,3771.7,3771.6,9.64009]
[1753138174723,0.132,3771.7,3771.6,1.5793]
[1753138174922,0.132,3771.7,3771.6,0.801]
[1753138174923,2.65132433,3771.7,3771.6,0.801]
[1753138175146,3.75442433,3771.7,3771.6,0.801]
[1753138176634,3.75442433,3771.7,3771.6,0.001]
[1753138177512,3.75442433,3771.7,3770.8,0.001]
[1753138177513,2.65188681,3770.9,3770.8,0.001]
[1753138177719,9.50464553,3770.9,3770.8,4.054]
[1753138180337,9.84064553,3770.9,3770.8,0.001]
[1753138181126,13.55764553,3770.9,3770.8,0.001]
[1753138181439,13.89364553,3770.9,3770.8,0.001]
[1753138181807,9.84064553,3770.9,3770.8,0.001]
[1753138182006,13.89364553,3770.9,3770.8,0.001]
[1753138182241,9.84064553,3770.9,3770.8,0.001]
[1753138182445,13.89364553,3770.9,3770.8,0.001]
[1753138189747,13.89364553,3770.9,3770.3,0.001]
[1753138189748,9.52442686,3770.5,3770.3,0.001]
[1753138189949,13.57742686,3770.5,3770.3,0.001]
[1753138190153,13.91342686,3770.5,3770.3,0.001]
[1753138191418,13.57742686,3770.5,3770.3,0.001]
[1753138194055,13.91342686,3770.5,3770.3,0.001]
[1753138195159,13.57742686,3770.5,3770.3,0.001]
[1753138195659,13.91342686,3770.5,3770.3,0.001]
[1753138195855,13.57742686,3770.5,3770.3,0.001]
[1753138196857,13.91342686,3770.5,3770.3,0.001]
[1753138198319,13.57742686,3770.5,3770.3,0.001]
[1753138202525,13.91342686,3770.5,3770.3,0.001]
[1753138202726,2.65223848,3770.4,3770.3,0.001]
[1753138202929,3.12023848,3770.4,3770.3,0.001]
[1753138204737,2.78423848,3770.4,3770.3,0.001]
[1753138204955,6.83623848,3770.4,3770.3,0.001]
[1753138205254,2.78423848,3770.4,3770.3,0.001]
[1753138205651,6.83623848,3770.4,3770.3,0.001]
[1753138206856,7.17223848,3770.4,3770.3,0.001]
[1753138207767,7.17223848,3770.4,3770.3,1e-08]
[1753138207971,2.65244953,3770.1,3770.0,0.001]
[1753138208131,2.65266061,3769.8,3769.7,0.001]
[1753138208331,6.70466061,3769.8,3769.7,0.001]
[1753138209264,2.65266061,3769.8,3769.7,0.001]
[1753138209426,6.70466061,3769.8,3769.7,0.438]
[1753138211271,2.65266061,3769.8,3769.7,0.438]
[1753138218892,0.8143,3770.4,3769.7,0.438]
[1753138219090,2.65257885,3770.0,3769.8,0.7911]
[1753138219293,2.65246192,3770.1,3769.9,0.4285]
[1753138219627,6.06205872,3770.4,3770.1,0.8161]
[1753138219628,2.65223848,3770.4,3770.1,0.8161]
[1753138219791,6.06205872,3770.3,3770.2,0.4285]
[1753138220008,8.71436755,3770.3,3770.2,0.4285]
[1753138223402,8.71436755,3770.3,3769.7,0.001]
[1753138223403,2.65259025,3769.9,3769.8,1.1897]
[1753138223692,8.71464897,3769.9,3769.8,0.7612]
[1753138224202,8.71464897,3769.9,3769.8,1.1897]
[1753138225002,6.06205872,3769.9,3769.8,1.1897]
[1753138225200,8.71464897,3769.9,3769.8,1.1897]
[1753138228464,8.71464897,3769.9,3769.8,0.4285]
[1753138229261,8.71464897,3769.9,3769.7,0.001]
[1753138229262,2.78466061,3769.8,3769.7,0.001]
[1753138232207,2.78466061,3769.8,3769.7,0.4295]
[1753138233001,0.132,3769.8,3769.7,0.4295]
[1753138233200,0.132,3769.8,3769.7,1.2198]
[1753138235012,0.132,3769.8,3769.7,1.61001909]
[1753138236572,0.132,3769.8,3769.7,1.2198]
[1753138237495,0.132,3769.8,3769.7,5.2678]
[1753138240037,0.132,3769.8,3769.7,1.2198]
[1753138240208,0.132,3769.8,3769.7,5.2678]
[1753138240881,0.132,3769.8,3769.7,1.2198]
[1753138241087,0.132,3769.8,3769.7,5.2678]
[1753138242636,2.78466061,3769.8,3769.7,5.2678]
[1753138242820,0.132,3769.8,3769.7,5.2678]
[1753138248500,0.132,3769.8,3769.7,9.04207724]
[1753138248702,0.132,3769.8,3769.7,9.01554994]
[1753138251786,0.132,3769.8,3769.7,6.36281896]
[1753138251969,0.132,3769.8,3769.7,6.38934626]
[1753138253550,0.132,3769.8,3769.7,4.8393]
[1753138253738,0.132,3769.8,3769.7,4.4905]
[1753138254261,0.132,3769.8,3769.7,4.4885]
[1753138258375,0.132,3769.8,3769.7,0.4425]
[1753138258550,0.132,3769.8,3769.7,4.046]
[1753138259076,6.19405872,3769.8,3769.7,0.001]
[1753138259244,6.19405872,3769.8,3769.7,4.046]
[1753138260142,8.84671933,3769.8,3769.7,4.046]
[1753138262378,6.19405872,3769.8,3769.7,4.046]
[1753138263243,0.132,3769.8,3769.7,4.046]
[1753138263481,0.132,3769.8,3769.7,4.4875]
[1753138269052,0.132,3769.8,3769.7,0.4425]
[1753138269252,0.132,3769.8,3769.7,4.4865]
[1753138270477,0.132,3769.8,3769.7,0.4425]
[1753138270682,0.132,3769.8,3769.7,4.4865]
[1753138274503,0.132,3769.8,3769.7,7.45160235]
[1753138274665,0.132,3769.8,3769.7,4.77234407]
[1753138274870,0.132,3769.8,3769.7,7.45160235]
[1753138275084,0.132,3769.8,3769.7,7.42507505]
[1753138276722,0.132,3769.8,3769.7,4.77234407]
[1753138276876,0.132,3769.8,3769.7,4.79887137]
[1753138277249,0.132,3769.8,3769.7,7.45160235]
[1753138277517,0.132,3769.8,3769.7,7.42507505]
[1753138279977,0.132,3769.8,3769.7,4.045]
[1753138280186,0.132,3769.8,3769.7,4.5085]
[1753138281040,2.78466061,3769.8,3769.7,4.044]
[1753138281216,2.78466061,3769.8,3769.7,0.001]
[1753138281418,3.94706061,3769.8,3769.7,4.044]
[1753138282083,3.61106061,3769.8,3769.7,4.044]
[1753138283329,0.132,3769.8,3769.7,4.5075]
[1753138286607,0.132,3769.8,3769.7,7.16023098]
[1753138288418,0.002,3770.0,3769.9,6.20259025]
[1753138288616,0.002,3770.0,3769.9,11.15641615]
[1753138288836,0.002,3770.0,3769.9,11.59339025]
[1753138289556,0.002,3770.0,3769.9,38.16841325]
[1753138289854,0.002,3770.0,3769.9,42.39339025]
[1753138290054,0.002,3770.0,3769.9,42.12136318]
[1753138290240,0.002,3770.0,3769.9,35.52126818]
[1753138291020,1e-08,3770.0,3769.9,32.76150518]
[1753138291632,1e-08,3770.0,3769.9,28.68087818]
[1753138292152,1e-08,3770.0,3769.9,24.63887818]
[1753138292388,1e-08,3770.0,3769.9,23.40187418]
[1753138293334,1e-08,3770.0,3769.9,10.97892418]
[1753138293558,1e-08,3770.0,3769.9,15.01992418]
[1753138294375,1e-08,3770.0,3769.9,19.70992418]
[1753138296559,1e-08,3770.0,3769.9,15.66892418]
[1753138296758,1e-08,3770.0,3769.9,19.70892418]
[1753138297378,1e-08,3770.0,3769.9,15.66892418]
[1753138297582,1e-08,3770.0,3769.9,19.15892418]
[1753138297758,1e-08,3770.0,3769.9,19.70892418]
[1753138298158,1e-08,3770.0,3769.9,19.15892418]
[1753138298355,1e-08,3770.0,3769.9,19.70892418]
[1753138299959,1e-08,3770.0,3769.9,5.49]
[1753138300162,1e-08,3770.0,3769.9,4.84]
[1753138300349,1e-08,3770.0,3769.9,4.8665259]
[1753138300662,1e-08,3770.0,3769.9,10.51911615]
[1753138300861,1e-08,3770.0,3769.9,10.95609025]
[1753138301070,1e-08,3770.0,3769.9,8.3035]
[1753138301281,1e-08,3770.0,3769.9,7.5035]
[1753138301660,1e-08,3770.0,3769.9,10.15609025]
[1753138302257,1e-08,3770.0,3769.9,9.69259025]
[1753138302462,1e-08,3770.0,3769.9,10.89533745]
[1753138304344,1e-08,3770.0,3769.9,10.89633745]
[1753138305089,1e-08,3770.0,3769.9,12.25653745]
[1753138305391,1e-08,3770.0,3769.9,12.38853745]
[1753138307972,1e-08,3770.0,3769.9,8.34853745]
[1753138308180,1e-08,3770.0,3769.9,12.38753745]
[1753138315102,1e-08,3770.0,3769.9,12.33753745]
[1753138317794,1e-08,3770.0,3769.9,12.33653745]
[1753138319490,1e-08,3770.0,3769.9,7.02483745]
[1753138319704,1e-08,3770.0,3769.9,11.06283745]
[1753138319918,1e-08,3770.0,3769.9,7.02483745]
[1753138320088,1e-08,3770.0,3769.9,10.32359025]
[1753138320922,1e-08,3770.0,3769.9,10.79369025]
[1753138322191,1e-08,3770.0,3769.9,10.32359025]
[1753138322418,1e-08,3770.0,3769.9,6.28559025]
[1753138322618,1e-08,3770.0,3769.9,7.0155259]
[1753138322855,1e-08,3770.0,3769.9,9.64159025]
[1753138324406,1e-08,3770.0,3769.9,2.951]
[1753138324606,1e-08,3770.0,3769.9,0.001]
[1753138324812,2.9885199,3770.0,3769.9,4.039]
[1753138325209,0.33600001,3770.0,3769.9,4.039]
[1753138326722,1e-08,3770.0,3769.9,4.039]
[1753138331870,1e-08,3770.0,3769.9,0.001]
[1753138332019,1e-08,3770.0,3769.9,4.038]
[1753138333046,1e-08,3770.0,3769.9,0.001]
[1753138333226,1e-08,3770.0,3769.9,4.038]
[1753138334719,1e-08,3770.0,3769.9,0.001]
[1753138334965,1e-08,3770.0,3769.9,4.038]
[1753138335820,1e-08,3770.0,3769.9,0.001]
[1753138336047,0.33600001,3770.0,3769.9,4.038]
[1753138336270,3.7867199,3770.0,3769.9,0.001]
[1753138336432,3.7867199,3770.0,3769.9,4.038]
[1753138336764,3.7867199,3770.0,3769.9,0.001]
[1753138337120,3.7867199,3770.0,3769.9,4.038]
[1753138341025,3.7867199,3770.0,3769.9,0.001]
[1753138342836,3.4507199,3770.0,3769.9,0.001]
[1753138343053,3.7867199,3770.0,3769.9,0.001]
[1753138347971,2.65266061,3769.8,3769.7,0.001]
[1753138348278,9.53991933,3769.8,3769.7,0.001]
[1753138348497,9.87591933,3769.8,3769.7,0.001]
[1753138350213,2.65273098,3769.7,3769.4,0.001]
[1753138350377,0.8124,3769.4,3769.3,0.001]
[1753138350577,13.56440083,3769.4,3769.3,0.001]
[1753138350886,3.46548288,3769.2,3768.3,4.038]
[1753138351091,3.46548288,3769.2,3768.3,0.001]
[1753138351302,2.65322366,3769.0,3768.3,4.037]
[1753138351503,8.71528238,3769.0,3768.3,4.037]
[1753138351814,8.71528238,3769.0,3768.3,4.4885]
[1753138352721,8.71528238,3769.0,3768.3,4.037]
[1753138352889,8.71528238,3769.0,3768.4,0.4515]
[1753138356833,8.71528238,3769.0,3768.3,0.001]
[1753138356834,3.4507461,3768.4,3768.3,0.001]
[1753138357135,0.7971,3767.8,3766.9,0.7661]
[1753138357333,6.06205872,3767.3,3766.9,4.8031]
[1753138357491,2.65470973,3766.9,3766.7,0.02654843]
[1753138357867,2.65470973,3766.9,3766.6,3.0]
[1753138357868,0.132,3766.8,3766.6,0.7661]
[1753138358014,0.132,3766.8,3766.6,4.8031]
[1753138358343,0.132,3766.8,3766.6,4.7531]
[1753138358632,0.132,3766.8,3766.7,0.4515]
[1753138360030,0.132,3766.8,3766.7,4.4885]
[1753138366342,0.132,3766.8,3766.7,5.47134145]
[1753138367240,0.132,3766.8,3766.7,1.43434145]
[1753138367424,0.132,3766.8,3766.7,4.4885]
[1753138368149,0.7718,3766.7,3765.7,0.7778]
[1753138368335,0.7718,3766.7,3765.7,1.2319]
[1753138368336,6.06205872,3766.0,3765.7,1.2319]
[1753138368535,2.65547825,3765.8,3765.3,0.8043583]
[1753138368734,6.06205872,3766.0,3765.4,4.037]
[1753138369161,8.71744782,3766.0,3765.5,0.4541]
[1753138369559,2.65541195,3765.9,3765.5,0.4541]
[1753138369870,2.65541195,3765.9,3765.6,4.037]
[1753138370073,8.71741577,3766.0,3765.7,4.4911]
[1753138370268,8.71741577,3766.0,3765.7,4.037]
[1753138370475,8.71741577,3766.0,3765.8,0.4541]
[1753138370633,8.71741577,3766.0,3765.9,4.037]
[1753138371087,6.06205872,3766.0,3765.9,4.037]
[1753138371435,6.06205872,3766.0,3765.9,4.4911]
[1753138371947,8.71739594,3766.0,3765.9,4.4911]
[1753138372150,8.71739594,3766.0,3765.9,4.037]
[1753138373450,8.71739594,3766.0,3765.7,0.4541]
[1753138373672,8.71739594,3766.0,3765.9,4.037]
[1753138376388,6.06205872,3766.0,3765.9,4.037]
[1753138377281,8.71739594,3766.0,3765.9,4.037]
[1753138377664,8.71739594,3766.0,3765.7,0.4541]
[1753138377869,8.71739594,3766.0,3765.9,4.037]
[1753138378383,6.06205872,3766.0,3765.9,4.037]
[1753138379877,2.65509726,3766.4,3765.9,4.4911]
[1753138380080,6.06205872,3766.5,3765.9,4.4911]
[1753138380261,2.65507094,3766.4,3766.0,0.4541]
[1753138380457,2.65513416,3766.3,3766.1,0.4541]
[1753138380660,2.65507718,3766.4,3766.2,4.037]
[1753138380862,4.373,3766.9,3766.2,4.037]
[1753138380863,6.82305872,3766.9,3766.3,0.4541]
[1753138381180,2.65482539,3766.8,3766.3,0.4541]
[1753138381559,2.65482539,3766.8,3766.2,4.037]
[1753138381750,2.65484797,3766.7,3766.4,0.4541]
[1753138382142,6.06205872,3766.9,3766.4,0.4541]
[1753138382361,6.06205872,3766.9,3766.5,0.4541]
[1753138382679,2.65484376,3766.7,3766.6,4.037]
[1753138382879,2.6549496,3766.6,3766.1,0.4541]
[1753138383083,0.132,3766.2,3766.1,0.4541]
[1753138383272,0.132,3766.2,3766.1,4.4911]
[1753138384156,0.132,3766.2,3765.9,3.41929416]
[1753138384384,0.132,3766.2,3766.0,4.4911]
[1753138384884,0.132,3766.2,3766.1,3.10936672]
[1753138385084,0.132,3766.2,3766.1,0.4541]
[1753138385487,0.132,3766.2,3766.1,3.10936672]
[1753138385688,0.132,3766.2,3766.1,0.4541]
[1753138387070,0.132,3766.2,3766.1,4.4911]
[1753138388985,0.132,3766.2,3766.1,0.4541]
[1753138389171,0.132,3766.2,3766.1,4.4911]
[1753138389374,0.132,3766.2,3766.1,8.61386597]
[1753138389554,0.132,3766.2,3766.1,8.58731331]
[1753138392717,0.132,3766.2,3766.1,5.93104659]
[1753138392899,0.132,3766.2,3766.1,7.92551938]
[1753138393222,0.132,3766.2,3766.1,7.89896672]
[1753138394433,3.41555239,3767.2,3766.3,2.65508915]
[1753138394434,0.761,3767.2,3766.3,2.65508915]
[1753138394599,0.132,3766.6,3766.4,4.51665055]
[1753138394914,0.132,3766.6,3766.5,0.4541]
[1753138396698,0.132,3766.6,3766.5,3.10908473]
[1753138396920,0.132,3766.6,3766.5,0.4541]
[1753138399224,0.132,3766.6,3766.4,4.036]
[1753138399414,0.132,3766.6,3766.4,4.4674]
[1753138399905,0.132,3766.6,3766.4,4.036]
[1753138400513,0.132,3766.6,3766.4,4.4674]
[1753138400712,0.132,3766.6,3766.5,0.4314]
[1753138401424,0.132,3766.6,3766.4,4.036]
[1753138401721,0.132,3766.6,3766.4,4.4674]
[1753138401924,0.132,3766.6,3766.5,0.4314]
[1753138402125,0.132,3766.6,3766.5,4.036]
[1753138402326,0.9283,3766.6,3766.5,4.036]
[1753138403104,0.132,3766.6,3766.5,4.036]
[1753138404522,0.132,3766.6,3766.5,7.12238473]
[1753138404834,0.132,3766.6,3766.5,8.18075035]
[1753138407228,0.132,3766.6,3766.5,4.4664]
[1753138407656,0.132,3766.6,3766.5,4.035]
[1753138408158,3.58321424,3766.6,3766.5,4.035]
[1753138410247,2.65498666,3766.5,3766.0,0.45795337]
[1753138410432,2.65498666,3766.5,3766.1,4.035]
[1753138410761,2.65498666,3766.5,3766.1,4.4664]
[1753138411463,2.65505079,3766.5,3766.2,4.035]
[1753138412426,0.132,3766.2,3765.9,0.83275407]
[1753138412628,0.132,3766.2,3766.0,4.035]
[1753138412827,0.132,3766.2,3765.9,0.02655407]
[1753138413042,0.132,3766.2,3766.0,4.035]
[1753138413679,0.132,3766.2,3766.0,4.4664]
[1753138414380,0.7983,3766.6,3766.1,4.035]
[1753138414606,2.65519342,3766.3,3766.1,4.035]